Cogmind - Beta 12 @@@ ROGUE MODE // 2023.03.05 @ 16:05:00 // Winter2019/RPGLIKE Player: ArabianSandBoa Result: Destroyed by Lightning with EMDS Performance ------------- Evolutions (4) 2000 Regions Visited (21) 4200 Robots Destroyed (592) 2960 Value Destroyed (27758) 27758 Prototype IDs (66) 1320 Alien Tech Used (0) 0 Bonus (14936) 14936 TOTAL SCORE: 53174 Bonus ------- Triggered High Security 1500 High Alert Combat Kills 13784 Follower Combat Kills 1649 Entered Garrisons 600 Network Hubs Disabled 600 Aligned with FarCom 300 Met Data Miner 300 A7 Reached Mainframe 300 Met R17 at Cetus 500 Friendly Fire -4597 Cogmind --------- Core Integrity 0/900 Matter 70/400 Energy 590/600 System Corruption 27% Temperature Hot (212) Movement Immobile (Siege) Location -6/Hub_04(d) Parts ------- > --- POWER (2) -------- Quantum Reactor Quantum Reactor > --- PROPULSION (5) --- Centrium Heavy Treads Centrium Heavy Treads > --- UTILITY (8) ------ Experimental Targeting Computer Core Analyzer Armor Integrity Analyzer Improved Kinecellerator Improved Hacking Suite Improved Hacking Suite Improved System Shield Improved System Shield > --- WEAPON (5) ------- Advanced Variable Charge Gun XL Autogun Array > --- INVENTORY (6) ---- Encrypted Comm Array Advanced Particle Charger Centrium Medium Armor Plating Centrium Medium Armor Plating Improved System Shield Scatter Rocket Array Peak State ------------ > --- POWER ------------ Quantum Reactor Quantum Reactor > --- PROPULSION ------- Centrium Heavy Treads Centrium Heavy Treads Potential Leg > --- UTILITY ---------- Weapon Mount Core Analyzer Armor Integrity Analyzer Improved Kinecellerator Transmission Jammer Centrium Medium Armor Plating Centrium Medium Armor Plating Improved System Shield > --- WEAPON ----------- Advanced Variable Charge Gun XL Autogun Array > --- INVENTORY -------- Potential Leg Encrypted Comm Array Scatter Rocket Array Molecular Deconstructor [Rating: 157] Favorites ----------- Power Neutrino Core Engine Ion Engine Power Core Neutrino Core Reactor Quantum Reactor Propulsion Combat Airjet Treads Centrium Heavy Treads Leg Potential Leg Wheel Compact Wheel Hover Unit Combat Airjet Utility Modified TNC Device Improved Kinecellerator Storage Medium Matter Pod Processor Modified TNC Hackware Hacking Suite Protection Centrium Medium Armor Plating Weapon XL Autogun Array Energy Gun Advanced Variable Charge Gun Energy Cannon Particle Cannon Ballistic Gun XL Autogun Array Launcher Grenade Launcher Special Weapon Molecular Deconstructor Build | -11 -10 -10 -10 -9 -8 -8 -8 -8 -8 -8 -8 -7 -7 -7 -7 -6 -6 -6 -6 -6 -6 ------- Run | Jun Mat Min Exi Min Mat Gar Mat Gar Mat Gar Mat Fac Low Low Dat Pro Fac Ext Cet Arc Hub Slots Evolved 16 | . 3 5 1 1 2 1 . . . 1 . 1 . . . . . . 1 . . Power 1 | . . . . . . 1 . . . . . . . . . . . . . . . Propulsion 4 | . . 3 . . 1 . . . . . . . . . . . . . . . . Utility 7 | . 2 1 . 1 1 . . . . 1 . 1 . . . . . . . . . Weapon 4 | . 1 1 1 . . . . . . . . . . . . . . . 1 . . Parts Attached 112 | . 18 6 3 1 10 11 5 3 . 4 1 1 3 3 . 3 4 5 21 7 3 Power 11 | . 1 1 . . . 2 . . . 2 1 . . 1 . . 1 . 2 . . Engine 2 | . 1 . . . . . . . . . . . . . . . 1 . . . . Core 6 | . . 1 . . . 2 . . . 2 1 . . . . . . . . . . Reactor 3 | . . . . . . . . . . . . . . 1 . . . . 2 . . Propulsion 20 | . 1 4 . . 1 3 1 1 . 1 . . . 2 . . . . 6 . . Treads 3 | . . . . . . . . . . . . . . . . . . . 3 . . Leg 7 | . . . . . . 2 . . . . . . . 2 . . . . 3 . . Wheel 1 | . 1 . . . . . . . . . . . . . . . . . . . . Hover 9 | . . 4 . . 1 1 1 1 . 1 . . . . . . . . . . . Flight . | . . . . . . . . . . . . . . . . . . . . . . Utility 51 | . 6 . 2 1 5 4 4 . . 1 . 1 3 . . 1 1 5 7 7 3 Device 23 | . 1 . . 1 2 2 3 . . 1 . . 3 . . 1 . 2 3 4 . Storage 1 | . . . 1 . . . . . . . . . . . . . . . . . . Processor 9 | . 1 . 1 . 2 2 . . . . . 1 . . . . 1 . . . 1 Hackware 12 | . 2 . . . 1 . 1 . . . . . . . . . . 3 . 3 2 Protection 6 | . 2 . . . . . . . . . . . . . . . . . 4 . . Artifact . | . . . . . . . . . . . . . . . . . . . . . . Weapon 30 | . 10 1 1 . 4 2 . 2 . . . . . . . 2 2 . 6 . . Energy Gun 7 | . 3 . . . 2 . . . . . . . . . . . . . 2 . . Energy Cannon 6 | . 4 1 . . . 1 . . . . . . . . . . . . . . . Ballistic Gun 11 | . . . 1 . 2 1 . 1 . . . . . . . 1 1 . 4 . . Ballistic Cannon . | . . . . . . . . . . . . . . . . . . . . . . Launcher 5 | . 3 . . . . . . 1 . . . . . . . . 1 . . . . Special Weapon 1 | . . . . . . . . . . . . . . . . 1 . . . . . Impact Weapon . | . . . . . . . . . . . . . . . . . . . . . . Slashing Weapon . | . . . . . . . . . . . . . . . . . . . . . . Piercing Weapon . | . . . . . . . . . . . . . . . . . . . . . . Special Melee Weapon . | . . . . . . . . . . . . . . . . . . . . . . Unidentified Prototypes 11 | . . . . . 2 . 1 . . . . . . . . 1 2 . 4 . 1 Corrupted Parts 1 | . . . . . . . . . . . . . . . . . . . 1 . . System Corruption 1 | . . . . . . . . . . . . . . . . . . . 1 . . Parts Lost 1 | . . . . . . . 1 . . . . . . . . . . . . . . Power . | . . . . . . . . . . . . . . . . . . . . . . Propulsion . | . . . . . . . . . . . . . . . . . . . . . . Utility 1 | . . . . . . . 1 . . . . . . . . . . . . . . Weapon . | . . . . . . . . . . . . . . . . . . . . . . Highest Loss Streak 1 | . . . . . . . 1 . . . . . . . . . . . . . . To Critical Strikes . | . . . . . . . . . . . . . . . . . . . . . . Average Slot Usage (%) 83 | . 97 97 78 73 78 80 82 81 76 81 82 83 83 84 84 84 83 84 74 69 70 Engine 2 | . 14 7 . . . . . . . . . . . . . . 2 5 . . . Core 5 | . . 4 7 7 6 6 11 10 5 10 10 10 10 8 5 5 2 . . . . Reactor 1 | . . . . . . . . . . . . . . 1 5 5 5 5 9 10 10 Leg 2 | . 4 . . . . . 1 . . . . . . 8 10 10 10 10 6 . . Wheel 1 | . 9 8 . . . . . . . . . . . . . . . . . . . Hover 18 | . . 12 31 28 30 29 27 29 29 28 27 26 26 16 15 15 15 15 . . . Device 10 | . 3 . . . 5 5 11 11 11 12 16 15 20 21 21 21 21 12 14 10 5 Processor 16 | . 13 12 11 7 13 23 18 17 17 16 16 20 21 21 21 21 21 16 12 10 11 Hackware 9 | . 22 24 15 14 14 6 3 5 5 5 5 5 . . . . . 10 5 6 22 Energy Gun 1 | . 7 . . . . . . . . . . . . . . . . . 2 5 5 Energy Cannon 3 | . 17 18 6 . . . . . . . . . . . . . . . . . . Ballistic Gun 4 | . . . 4 7 6 5 5 4 5 5 5 5 5 5 5 5 4 5 5 5 5 Naked Turns . | . . . . . . . . . . . . . . . . . . . . . . Heaviest Build 97 | 4 14 18 27 35 27 46 46 45 35 50 50 50 50 50 48 48 48 49 97 97 79 Greatest Support 165 | 10 16 42 42 42 49 54 55 59 59 59 59 59 59 60 60 60 60 60 165 165 165 Greatest Overweight (x) 1 | . 1 1 . . . 1 . . . . . . . . . . . . 1 . . Average Overweight (x) . | . . . . . . . . . . . . . . . . . . . . . . Largest Inventory Capacity 6 | . 2 2 2 2 4 5 5 5 5 5 5 5 5 5 5 6 6 6 6 6 6 Average Capacity 4 | . 1 2 2 2 2 4 5 5 5 5 5 5 5 5 5 5 6 6 6 6 6 Most Carried 6 | . 2 2 2 2 4 5 5 5 5 5 5 5 5 5 5 6 6 6 6 6 6 Average Carried 4 | . 1 1 1 2 2 4 4 4 5 4 5 5 5 4 5 5 5 5 5 5 5 Final Capacity 6 | . 2 2 2 2 4 5 5 5 5 5 5 5 5 5 5 6 6 6 6 6 6 Final Carried 6 | . 2 . 2 2 4 5 5 5 5 5 5 5 5 5 5 6 5 6 6 6 6 Class Distribution -------------------- 56% | Hacker-Gunner 15% | Hacker-Mutant 10% | Scavenger-Gunner 7% | Commander-Gunner 5% | Wizard-Gunner 3% | Mutant Dominant Class ---------------- Hacker-Mutant | -10/Materials Hacker-Mutant | -10/Mines Hacker-Gunner | -10/Exiles Hacker-Gunner | -9/Mines Hacker-Gunner | -8/Materials Hacker-Gunner | -8/Garrison Hacker-Gunner | -8/Materials Hacker-Gunner | -8/Garrison Commander-Gunner | -8/Materials Hacker-Gunner | -8/Garrison Hacker-Gunner | -8/Materials Hacker-Gunner | -7/Factory Scavenger-Gunner | -7/Lower Caves Hacker-Gunner | -7/Lower Caves Hacker-Gunner | -7/Data Miner Scavenger-Gunner | -6/Proximity Caves Hacker-Gunner | -6/Factory Hacker-Gunner | -6/Extension Commander-Gunner | -6/Cetus Commander-Gunner | -6/Archives Wizard-Gunner | -6/Hub_04(d) Resources | -11 -10 -10 -10 -9 -8 -8 -8 -8 -8 -8 -8 -7 -7 -7 -7 -6 -6 -6 -6 -6 -6 ----------- Run | Jun Mat Min Exi Min Mat Gar Mat Gar Mat Gar Mat Fac Low Low Dat Pro Fac Ext Cet Arc Hub Matter Collected 18213 | 200 471 129 20 515 2432 1668 2455 1273 . 1384 1773 595 375 405 . 675 626 1098 622 325 1172 Remotely . | . . . . . . . . . . . . . . . . . . . . . . Salvage Created 26473 | . 1691 232 . 516 3322 1468 2791 1407 . 1574 3063 703 561 400 . 1242 1216 2226 390 727 2944 Parts 1469 | . 118 8 . 45 189 100 150 91 3 83 152 43 21 33 . 55 74 102 36 34 132 Haulers Intercepted 23 | . 2 . . . 6 . 5 . . . 1 1 . . . . 2 2 . . 4 Recyclers Shooed 6 | . 1 . . . 4 . 1 . . . . . . . . . . . . . . Parts Field Recycled 2 | . . . . 2 . . . . . . . . . . . . . . . . . Retrieved Matter 3 | . . . . 3 . . . . . . . . . . . . . . . . . Parts Self-Destructed 102 | . . . . . . . . . . . . . 21 22 . 59 . . . . . Prevented 1 | . . . . . . . . . . . . . . . . 1 . . . . . Kills | -11 -10 -10 -10 -9 -8 -8 -8 -8 -8 -8 -8 -7 -7 -7 -7 -6 -6 -6 -6 -6 -6 ------- Run | Jun Mat Min Exi Min Mat Gar Mat Gar Mat Gar Mat Fac Low Low Dat Pro Fac Ext Cet Arc Hub Combat Hostiles Destroyed 441 | . 30 3 . 13 52 40 42 37 . 37 65 12 6 10 . 18 7 28 12 4 25 Guns 406 | . 5 . . 13 52 40 40 37 . 37 62 12 6 10 . 18 7 28 12 4 23 Cannons 22 | . 19 3 . . . . . . . . . . . . . . . . . . . AOE 11 | . 5 . . . . . 2 . . . 3 . . . . . . . . . 1 Classes Destroyed 22 | . 9 2 . 1 3 4 . . . . 1 . 1 1 . . . . . . . Worker 22 | . 4 . . . 9 . 2 . . . 1 . . . . . 3 1 . . 2 Builder 20 | . 11 . . 2 1 . 2 . . . . . . . . . 2 1 . . 1 Tunneler 6 | . 1 1 . . 3 . . . . . . . . . . . . . . . 1 Hauler 23 | . 2 . . . 6 . 5 . . . 1 1 . . . . 2 2 . . 4 Recycler 26 | . 2 1 . 2 6 . 8 . . . 1 . . . . . 1 3 . . 2 Mechanic 4 | . . . . . . . . . . . 4 . . . . . . . . . . Operator 25 | . 4 . . . 2 . 2 . . . 3 . . . . . 1 1 . 9 3 Watcher 30 | . 3 . . . 5 . 5 . . 1 5 1 . . . . 2 3 2 . 3 Swarmer 55 | . 3 . . 3 4 10 . 10 . 6 5 . 1 3 . 1 . 1 5 . 3 Grunt 184 | . 27 1 . 9 32 13 24 14 . 6 33 1 1 . . 2 3 11 3 . 4 Brawler 24 | . . . . . . . 1 . . 7 6 . 1 1 . 4 . 2 . . 2 Duelist 15 | . . . . 1 . . 3 . . 1 6 1 1 . . . 1 . . . 1 Protector 9 | . . . . . . 1 2 . . . 3 . . . . . . . . . 3 Sentry 77 | . . . . . 10 5 9 4 . 10 13 7 1 . . 1 . 9 . 4 4 Demolisher 3 | . . 1 . . . 1 . . . . . . . . . . . 1 . . . Specialist 10 | . . . . . . 2 . 3 . 3 . . . . . 1 . 1 . . . Hunter 29 | . . . . . 5 . 2 3 1 4 . 3 . . . 7 3 . . . 1 Programmer 15 | . . . . . . 8 . 3 . . . . . 1 . 1 1 1 . . . Heavy 3 | . . . . . 1 . 1 . . . . . . . . . . . . . 1 Behemoth 5 | . . . . . . . . . . . . . 1 1 . 1 . 2 . . . Cetus Guard 4 | . . . . . . . . . . . . . . . . . . . 4 . . Enhanced Grunt 4 | . . . . . . . . . . . . . . . . . 1 . . . 3 Lightning 6 | . . . . . . . . . . . . . . . . . . . . . 6 Packrat 1 | . . . . . . . . . . . . . 1 . . . . . . . . Thief 1 | . . . . . . . . . . . . . . 1 . . . . . . . Master Thief 3 | . . . . . . . . . . . . . . 3 . . . . . . . Assembled 1 | . . 1 . . . . . . . . . . . . . . . . . . . Savage 4 | . . . . . . 1 . . . . . . . . . . . . . . 3 Butcher 3 | . . . . . . . . . . . . . . . . . . . 1 1 1 Guerrilla 1 | . . . . . . . . . . . . . . . . . . . . . 1 Wizard 1 | . . . . . . . . . . . . . . . . . 1 . . . . Best Kill Streak 52 | . 7 2 . 5 15 9 16 9 . 6 52 9 5 3 . 8 12 16 6 5 13 Combat Bots Only 34 | . 6 1 . 3 11 9 11 9 . 6 34 9 5 3 . 8 5 7 6 4 6 Max Kills in Single Turn 9 | . 2 1 . 1 2 1 2 2 1 1 3 2 1 1 . 1 2 2 2 1 9 Gunslinging 1 | . . . . . . . . . . . . . . . . . . . 1 . . Exploded 2 | . 2 . . . . . 2 . . . 2 . . . . . . . . . 1 Melee . | . . . . . . . . . . . . . . . . . . . . . . Uniques/NPCs Destroyed . | . . . . . . . . . . . . . . . . . . . . . . Combat | -11 -10 -10 -10 -9 -8 -8 -8 -8 -8 -8 -8 -7 -7 -7 -7 -6 -6 -6 -6 -6 -6 -------- Run | Jun Mat Min Exi Min Mat Gar Mat Gar Mat Gar Mat Fac Low Low Dat Pro Fac Ext Cet Arc Hub Damage Taken 6187 | . 701 69 . 101 457 182 350 229 7 208 125 345 201 70 . 243 430 249 126 123 1971 Core 4930 | . 546 61 . 76 373 142 279 183 5 159 100 281 157 56 . 191 371 196 91 96 1567 Absorbed by Shields 217 | . . . . . . . . . . . . . . . . . . 161 56 . . Reduced by Siege Mode 58 | . . . . . . . . . . . . . . . . . . . 3 . 55 Redirected to Core 4284 | . 407 29 . 76 316 142 247 159 5 153 87 226 157 45 . 177 217 165 91 58 1527 Core Remaining (%) 98 | 100 . . . 100 . . . . . . 100 . . . . 95 . . . . . Volleys Fired 1293 | . 200 10 . 33 165 96 134 77 5 81 113 45 17 25 . 43 41 70 24 19 95 Largest 2 | . 2 2 . 1 1 1 1 1 1 1 1 1 1 1 . 1 1 1 2 1 1 Hottest 140 | . 136 136 . 60 60 60 60 60 60 60 60 60 60 60 . 60 60 60 140 60 60 Shots Fired 1466 | . 360 18 . 33 166 96 134 77 5 81 114 45 17 25 . 43 41 71 25 19 96 Gun 1175 | . 88 . . 33 166 96 134 76 5 81 114 45 17 25 . 43 41 71 25 19 96 Cannon 254 | . 238 16 . . . . . . . . . . . . . . . . . . . Launcher 37 | . 34 2 . . . . . 1 . . . . . . . . . . . . . Special . | . . . . . . . . . . . . . . . . . . . . . . Kinetic 1085 | . . . . 33 166 96 134 76 5 81 114 45 17 25 . 43 41 71 24 19 95 Thermal 344 | . 326 16 . . . . . . . . . . . . . . . . 1 . 1 Explosive 37 | . 34 2 . . . . . 1 . . . . . . . . . . . . . Electromagnetic . | . . . . . . . . . . . . . . . . . . . . . . Robot Hit Streak 56 | . 22 13 . 7 23 30 28 25 26 56 35 31 25 14 . 36 13 42 33 23 40 Robot Miss Streak 7 | . 3 1 . 7 6 3 3 2 1 2 3 2 1 2 . 3 6 4 2 1 3 Penetration Max . | . . . . . . . . . . . . . . . . . . . . . . Secondary Targets 1 | . . . . . . . . . . . . . . . . . . . 1 . . Max Gunslinging Chain 1 | . . . . . . . . . . . . . . . . . . . 1 . . Shots Hit Robots 937 | . 149 8 . 24 106 57 77 53 1 49 91 29 14 23 . 37 35 61 25 18 80 Core Hits 897 | . 76 6 . 20 107 51 74 47 2 50 99 26 13 18 . 34 35 71 36 27 105 Critical Kills 1 | . . 1 . . . . . . . . . . . . . . . . . . . Critical Parts Destroyed . | . . . . . . . . . . . . . . . . . . . . . . Critical Strikes 3 | . 2 1 . . . . . . . . . . . . . . . . . . . Burn 2 | . 2 . . . . . . . . . . . . . . . . . . . . Meltdown 1 | . . 1 . . . . . . . . . . . . . . . . . . . Melee Attacks . | . . . . . . . . . . . . . . . . . . . . . . Impact . | . . . . . . . . . . . . . . . . . . . . . . Slashing . | . . . . . . . . . . . . . . . . . . . . . . Piercing . | . . . . . . . . . . . . . . . . . . . . . . Sneak Attacks . | . . . . . . . . . . . . . . . . . . . . . . Combat Hostiles . | . . . . . . . . . . . . . . . . . . . . . . Follow-up Attacks . | . . . . . . . . . . . . . . . . . . . . . . Damage Inflicted 68234 | . 3125 180 . 969 6991 4160 6575 4060 195 4624 7713 2346 1464 1882 . 2888 2846 6116 2182 1740 8178 Guns 62841 | . 625 . . 969 6792 4160 6152 4060 72 4624 7331 2346 1464 1882 . 2888 2810 6116 2182 1740 6628 Cannons 2173 | . 2030 143 . . . . . . . . . . . . . . . . . . . Explosions 3220 | . 470 37 . . 199 . 423 . 123 . 382 . . . . . 36 . . . 1550 Melee . | . . . . . . . . . . . . . . . . . . . . . . Ramming . | . . . . . . . . . . . . . . . . . . . . . . Kinetic 62179 | . . . . 969 6792 4160 6152 4060 72 4624 7331 2346 1464 1882 . 2888 2810 6116 2145 1740 6628 Thermal 3417 | . 2655 143 . . . . 423 . 123 . . . . . . . 36 . 37 . . Explosive 1088 | . 470 37 . . 199 . . . . . 382 . . . . . . . . . . Electromagnetic 1550 | . . . . . . . . . . . . . . . . . . . . . 1550 Impact . | . . . . . . . . . . . . . . . . . . . . . . Slashing . | . . . . . . . . . . . . . . . . . . . . . . Piercing . | . . . . . . . . . . . . . . . . . . . . . . Highest Corruption 26 | . . . . . 3 4 4 3 3 3 3 . . . . . . 1 2 2 26 Average Corruption 2 | . . . . . 1 3 2 3 3 3 3 . . . . . . 1 1 1 9 Corruption Purged 5 | . . . . . . . 3 . . . . . . . . . . . . 2 . Corruption Blocked 8 | . . . . . . . . . . . . . . . . . 8 . . . . Effects 103 | . . . . . 7 15 16 16 . 16 10 . . . . . . 2 8 4 9 Message Errors 26 | . . . . . . 5 4 1 . 4 2 . . . . . . 1 4 1 4 Matter Fused 27 | . . . . . 2 1 3 5 . 9 4 . . . . . . . 1 1 1 Heat Flow Errors 11 | . . . . . . 2 1 2 . 2 2 . . . . . . . . 1 1 Energy Discharges 11 | . . . . . . 2 4 2 . . . . . . . . . . 2 . 1 Parts Rejected 1 | . . . . . . . . 1 . . . . . . . . . . . . . Data Loss (minor) 11 | . . . . . 2 2 3 1 . . 1 . . . . . . . 1 1 . Data Loss (major) 5 | . . . . . 1 1 1 2 . . . . . . . . . . . . . Misfires 5 | . . . . . 1 1 . . . . 1 . . . . . . 1 . . 1 Alerts 4 | . . . . . 1 . . 2 . 1 . . . . . . . . . . . Misdirections 1 | . . . . . . . . . . . . . . . . . . . . . 1 Weapon Failures 1 | . . . . . . 1 . . . . . . . . . . . . . . . Overload Shots . | . . . . . . . . . . . . . . . . . . . . . . Overflow Damage 173 | . 75 . . . 15 . 46 . . . 3 . . . . . . . . . 34 Projectiles 65 | . 65 . . . . . . . . . . . . . . . . . . . . Explosions 108 | . 10 . . . 15 . 46 . . . 3 . . . . . . . . . 34 Melee . | . . . . . . . . . . . . . . . . . . . . . . Knockbacks . | . . . . . . . . . . . . . . . . . . . . . . Impact . | . . . . . . . . . . . . . . . . . . . . . . Kinetic . | . . . . . . . . . . . . . . . . . . . . . . Secondary . | . . . . . . . . . . . . . . . . . . . . . . Self-Inflicted Damage 433 | . . . . . 90 . 45 . . . . . . . . . . . . . 298 Shots 7 | . . . . . 3 . 1 . . . . . . . . . . . . . 3 Rammed . | . . . . . . . . . . . . . . . . . . . . . . Targets Rammed . | . . . . . . . . . . . . . . . . . . . . . . Kicked . | . . . . . . . . . . . . . . . . . . . . . . Crushed . | . . . . . . . . . . . . . . . . . . . . . . Highest Temperature 365 | . 337 153 . 164 207 264 274 221 28 365 300 212 162 125 . 84 81 85 79 228 305 Average Temperature 58 | . 76 48 . 53 39 35 47 45 16 52 86 63 54 38 . 28 29 22 35 62 85 Received Heat Transfer 1158 | . 348 9 . 48 153 36 117 54 . 54 63 96 36 . . 27 30 47 4 9 27 Effects 1 | . . . . . . 1 . . . . . . . . . . . . . . . Interference 1 | . . . . . . 1 . . . . . . . . . . . . . . . Siege Activations 4 | . . . . . . . . . . . . . . . . . . . 1 . 3 Total Turns 45 | . . . . . . . . . . . . . . . . . . . 8 . 37 Longest Duration 19 | . . . . . . . . . . . . . . . . . . . 8 . 19 Robots Corrupted 4 | . . . . . . . . . . . . . . . . . . . . . 4 Combat Hostiles 1 | . . . . . . . . . . . . . . . . . . . . . 1 Parts Fried 17 | . . . . . . . . . . . . . . . . . 1 . . . 16 Impact Corruptions . | . . . . . . . . . . . . . . . . . . . . . . Robots Melted 2 | . 1 1 . . . . . . . . . . . . . . . . . . . Combat Hostiles 1 | . 1 . . . . . . . . . . . . . . . . . . . . Parts Melted 15 | . 12 2 . . . . . . . . 1 . . . . . . . . . . Heat Transferred 6829 | . 5883 259 . . . . 400 . 200 . . . . . . . 50 . 37 . . Parts Sabotaged . | . . . . . . . . . . . . . . . . . . . . . . Parts Stolen 1 | . . . . . . . . . . . . . . 1 . . . . . . . Parts Stripped . | . . . . . . . . . . . . . . . . . . . . . . Power Chain Reactions 1 | . . . . . 1 . . . . . . . . . . . . . . . . Missiles Intercepted . | . . . . . . . . . . . . . . . . . . . . . . Alert | -11 -10 -10 -10 -9 -8 -8 -8 -8 -8 -8 -8 -7 -7 -7 -7 -6 -6 -6 -6 -6 -6 ------- Run | Jun Mat Min Exi Min Mat Gar Mat Gar Mat Gar Mat Fac Low Low Dat Pro Fac Ext Cet Arc Hub Peak Influence 3901 | . 1328 597 . 499 1842 2776 3146 3566 1931 3094 3901 2555 . . . . 483 1913 1715 871 1800 Initial 2044 | . . 517 . . 116 1166 1353 2044 1738 1255 1508 1774 . . . . 129 223 1071 686 304 Average 1443 | . 568 517 . 324 994 2232 2088 2972 1860 2467 2691 2234 . . . . 308 946 1458 806 996 Maximum Alert Level 5 | . 4 2 . 2 5 5 5 5 5 5 5 5 . . . . 2 5 5 3 5 Low Security (%) 5 | . 18 . . 19 2 . . . . . . . . . . . 40 . . . 6 Level 1 8 | . 26 12 . 30 2 . . . . . . . . . . . 17 19 . . 6 Level 2 17 | . 25 87 . 49 25 . . . . . . . . . . . 42 18 . 7 9 Level 3 11 | . 12 . . . 29 . . . . . . . . . . . . 23 2 92 30 Level 4 16 | . 17 . . . 28 14 18 . . 12 7 . . . . . . 25 64 . 42 Level 5 35 | . . . . . 11 85 78 100 100 87 23 6 . . . . . 13 33 . 4 High Security 5 | . . . . . . . 3 . . . 69 93 . . . . . . . . . Max Security . | . . . . . . . . . . . . . . . . . . . . . . Sterilizations 2 | . . . . . 1 . . . . . 1 . . . . . . . . . . Squads Dispatched 89 | . 11 . . 1 19 . 14 . . . 14 11 . . . . 4 6 1 . 8 Investigation 40 | . 9 . . 1 11 . 9 . . . 3 . . . . . 1 5 1 . . Extermination 1 | . . . . . . . . . . . . . . . . . . . . . 1 Reinforcement 9 | . 2 . . . 1 . 2 . . . . . . . . . 1 . . . 3 Assault 23 | . . . . . 1 . 2 . . . 8 8 . . . . 2 1 . . 1 Garrison 16 | . . . . . 6 . 1 . . . 3 3 . . . . . . . . 3 Intercept . | . . . . . . . . . . . . . . . . . . . . . . Searches Triggered . | . . . . . . . . . . . . . . . . . . . . . . Data Miner Redirects 4 | . . . . . . . . . . . . . . . . . 1 3 . . . Construction Impeded . | . . . . . . . . . . . . . . . . . . . . . . Haulers Reinforced 1 | . . . . . . . . . . . . . . . . . 1 . . . . Active Scanning Responses . | . . . . . . . . . . . . . . . . . . . . . . Cargo Convoy Interrupts . | . . . . . . . . . . . . . . . . . . . . . . Stealth | -11 -10 -10 -10 -9 -8 -8 -8 -8 -8 -8 -8 -7 -7 -7 -7 -6 -6 -6 -6 -6 -6 --------- Run | Jun Mat Min Exi Min Mat Gar Mat Gar Mat Gar Mat Fac Low Low Dat Pro Fac Ext Cet Arc Hub Distress Signals 15 | . 1 . . . 6 . 3 . . . 1 . . . . . . . . . 4 Communications Jammed 20 | . . . . . . . 7 . . . 11 2 . . . . . . . . . Distress Signals 18 | . . . . . . . 7 . . . 11 . . . . . . . . . . Times Spotted 443 | . 35 3 . 11 56 31 38 21 1 26 71 14 5 10 . 14 9 37 18 8 35 Peak Tracking Total 10 | . 6 1 . 3 6 7 5 4 1 3 10 8 4 3 . 3 2 6 4 3 8 Tactical Retreats 4 | . . . . . 2 1 . 1 . . . . . . . . . . . . . Traps | -11 -10 -10 -10 -9 -8 -8 -8 -8 -8 -8 -8 -7 -7 -7 -7 -6 -6 -6 -6 -6 -6 ------- Run | Jun Mat Min Exi Min Mat Gar Mat Gar Mat Gar Mat Fac Low Low Dat Pro Fac Ext Cet Arc Hub Traps Triggered 29 | . 1 . . . 4 9 1 7 . 4 1 . . . . . . 1 . . 1 Indirectly . | . . . . . . . . . . . . . . . . . . . . . . Trap Hack Attempts . | . . . . . . . . . . . . . . . . . . . . . . Triggered . | . . . . . . . . . . . . . . . . . . . . . . Disarmed . | . . . . . . . . . . . . . . . . . . . . . . Reprogrammed 15 | . 1 . . . 4 . . . . . . . . . . . . . . . 10 Reused 2 | . . . . . . . . . . . . . . . . . . . . . 2 Traps Extracted . | . . . . . . . . . . . . . . . . . . . . . . Installed . | . . . . . . . . . . . . . . . . . . . . . . Triggered 3 | . . . . . . . . . . . . . . . . 1 . . . . 2 Machines | -11 -10 -10 -10 -9 -8 -8 -8 -8 -8 -8 -8 -7 -7 -7 -7 -6 -6 -6 -6 -6 -6 ---------- Run | Jun Mat Min Exi Min Mat Gar Mat Gar Mat Gar Mat Fac Low Low Dat Pro Fac Ext Cet Arc Hub Machines Disabled 300 | . 29 4 . 8 42 13 48 17 5 21 21 22 . . . 3 19 12 2 3 31 Max in Single Turn 11 | . 2 2 . 1 2 2 2 2 2 2 2 7 . . . 1 11 2 . 1 9 Garrison Relay 17 | . . . . . . 8 . 4 . 5 . . . . . . . . . . . Phase Generator 2 | . . . . . . . . 1 . 1 . . . . . . . . . . . Network Hub 3 | . . . . . . . . . . . . . . . . . . . . . 3 Machines Repaired 3 | . 2 . . . 1 . . . . . . . . . . . . . . . . Machines Sabotaged . | . . . . . . . . . . . . . . . . . . . . . . Overloaded Fab Kills . | . . . . . . . . . . . . . . . . . . . . . . Hacking | -11 -10 -10 -10 -9 -8 -8 -8 -8 -8 -8 -8 -7 -7 -7 -7 -6 -6 -6 -6 -6 -6 --------- Run | Jun Mat Min Exi Min Mat Gar Mat Gar Mat Gar Mat Fac Low Low Dat Pro Fac Ext Cet Arc Hub Machines Accessed 81 | . 8 . 1 1 14 4 15 4 3 4 3 1 1 . 4 . 4 5 2 1 6 Terminals 58 | . 6 . . 1 10 4 10 4 2 4 2 . 1 . . . 2 4 2 . 6 Fabricators . | . . . . . . . . . . . . . . . . . . . . . . Repair Stations . | . . . . . . . . . . . . . . . . . . . . . . Recycling Units 6 | . 2 . . . 1 . 2 . . . . . . . . . . 1 . . . Scanalyzers 6 | . . . . . 2 . 2 . . . 1 . . . . . 1 . . . . Garrison Access 5 | . . . . . 1 . 1 . 1 . . 1 . . . . 1 . . . . Total Hacks 473 | . 35 . 1 7 103 9 75 16 14 11 17 1 1 . 30 . 15 29 9 25 75 Successful 318 | . 26 . 1 4 75 7 52 7 7 4 7 1 1 . 30 . 8 13 4 25 46 Failed 150 | . 8 . . 2 26 2 23 9 7 7 10 . . . . . 7 16 5 . 28 Catastrophic 13 | . 1 . . . 1 . 4 . 1 2 . . . . . . . 1 1 . 2 Database Lockouts 5 | . 1 . . 1 2 . . . . . . . . . . . . . . . 1 Manual 149 | . 21 . 1 8 39 5 22 3 7 . 9 . . . . 1 . 14 1 . 18 Terminals 378 | . 29 . . 7 95 9 64 16 13 11 15 . 1 . . . 11 23 9 . 75 Fabricators . | . . . . . . . . . . . . . . . . . . . . . . Repair Stations . | . . . . . . . . . . . . . . . . . . . . . . Recycling Units 23 | . 6 . . . 3 . 8 . . . . . . . . . . 6 . . . Scanalyzers 8 | . . . . . 2 . 2 . . . 2 . . . . . 2 . . . . Garrison Access 8 | . . . . . 3 . 1 . 1 . . 1 . . . . 2 . . . . Terminal Hacks 252 | . 14 . 1 3 57 4 40 6 4 4 4 . 1 . 30 . 5 7 4 25 43 Record 72 | . 2 . . 1 19 . 4 . . . . . 1 . 11 . 1 1 3 25 4 Part Schematic 16 | . . . . . . . . . . . . . . . 11 . . . . . 5 Robot Schematic 6 | . . . . . . . . . . . . . . . 5 . . . . . 1 Robot Analysis 12 | . 3 . . 2 2 . 3 . . . . . . . . . . . . . 2 Prototype ID Bank 16 | . 1 . . . 3 . 3 . 1 . 1 . . . 3 . . 1 . . 3 Open Door 4 | . . . . . . 1 . 1 . 1 . . . . . . . . 1 . . Open DSF 1 | . . . . . . . . . . . . . . . . . 1 . . . . Level Access Points 1 | . 1 . . . . . . . . . . . . . . . . . . . . Branch Access Points 6 | . . . . . . . 1 . 1 . 1 . . . . . 1 1 . . 1 Emergency Access Points 14 | . 1 . . . 2 1 2 1 . 1 1 . . . . . . . . . 5 Machine Index 3 | . . . . . 1 . 1 . . . . . . . . . . . . . 1 Fabricator Index 1 | . . . . . . . . . . . . . . . . . . . . . 1 Scanalyzer Index 1 | . . . . . 1 . . . . . . . . . . . . . . . . Garrison Index 4 | . . . . . . . 1 . 1 . . . . . . . . 1 . . 1 Alert Level 12 | . 2 . . . 3 . 6 . . . . . . . . . . . . . 1 Unreport Threat 14 | . . . . . 5 . 3 . . . . . . . . . . 1 . . 5 Locate Traps 4 | . . . . . 2 . . . . . . . . . . . . 1 . . 1 Disarm Traps 1 | . . . . . 1 . . . . . . . . . . . . . . . . Reprogram Traps 9 | . 1 . . . 3 . 1 . . . . . . . . . . . . . 4 Dispatch Records 1 | . . . . . 1 . . . . . . . . . . . . . . . . Security Status 2 | . . . . . 1 . . . . . . . . . . . . . . . 1 Surveillance Status 4 | . . . . . 3 . . . . . . . . . . . . . . . 1 Patrol Status 2 | . . . . . . . 1 . . . . . . . . . . . . . 1 Investigation Status 1 | . . . . . . . 1 . . . . . . . . . . . . . . Reinforcement Status 1 | . . . . . . . 1 . . . . . . . . . . . . . . Assault Status 1 | . . . . . 1 . . . . . . . . . . . . . . . . Recall Investigation 2 | . . . . . . . 2 . . . . . . . . . . . . . . Recall Reinforcements 1 | . . . . . . . 1 . . . . . . . . . . . . . . Recall Assault 2 | . . . . . 1 . . . . . . . . . . . . . . . 1 Hauler Manifests 8 | . 2 . . . 3 . 3 . . . . . . . . . . . . . . Registered Components 2 | . . . . . . . . . . . . . . . . . 1 . . . 1 Registered Prototypes 2 | . . . . . . . . . . . . . . . . . . 1 . . 1 Zone Layout 17 | . 1 . . . 5 . 6 . 1 . 1 . . . . . 1 . . . 2 Garrison Registry 2 | . . . . . . 1 . . . 1 . . . . . . . . . . . Patrol Navigation 3 | . . . . . . 1 . 2 . . . . . . . . . . . . . Security Stations 3 | . . . . . . . . 2 . 1 . . . . . . . . . . . EX-Prototype ID Bank 1 | . . . 1 . . . . . . . . . . . . . . . . . . Fabricator Hacks . | . . . . . . . . . . . . . . . . . . . . . . Repair Station Hacks . | . . . . . . . . . . . . . . . . . . . . . . Recycling Unit Hacks 6 | . 2 . . . 2 . 1 . . . . . . . . . . 1 . . . Report Inventory 5 | . 2 . . . 1 . 1 . . . . . . . . . . 1 . . . Retrieve Matter 1 | . . . . . 1 . . . . . . . . . . . . . . . . Scanalyzer 2 | . . . . . . . . . . . . . . . . . 2 . . . . Insert Component 1 | . . . . . . . . . . . . . . . . . 1 . . . . Analyze 1 | . . . . . . . . . . . . . . . . . 1 . . . . Garrison Access Hacks 5 | . . . . . 1 . 1 . 1 . . 1 . . . . 1 . . . . Unlock Access 5 | . . . . . 1 . 1 . 1 . . 1 . . . . 1 . . . . Unauthorized Hacks 53 | . 10 . . 1 15 3 10 1 2 . 3 . . . . . . 5 . . 3 Terminals 35 | . 8 . . 1 11 3 3 1 2 . 2 . . . . . . 1 . . 3 Track 1 | . . . . . 1 . . . . . . . . . . . . . . . . Assimilate 1 | . . . . . 1 . . . . . . . . . . . . . . . . Botnet 10 | . 2 . . . 2 1 1 . 2 . . . . . . . . 1 . . 1 Detonate 2 | . . . . . 1 . . . . . . . . . . . . . . . 1 Disrupt 2 | . . . . . 1 . . . . . . . . . . . . . . . 1 Operators 1 | . . . . . 1 . . . . . . . . . . . . . . . . Sabotage 9 | . 3 . . 1 3 . 2 . . . . . . . . . . . . . . Search 6 | . 3 . . . 1 . . . . . 2 . . . . . . . . . . Override 3 | . . . . . . 2 . 1 . . . . . . . . . . . . . Fabricators . | . . . . . . . . . . . . . . . . . . . . . . Repair Stations . | . . . . . . . . . . . . . . . . . . . . . . Recycling Units 12 | . 2 . . . 1 . 5 . . . . . . . . . . 4 . . . Monitor 2 | . . . . . . . 1 . . . . . . . . . . 1 . . . Reject 3 | . 1 . . . . . 1 . . . . . . . . . . 1 . . . Mask 2 | . . . . . . . 1 . . . . . . . . . . 1 . . . Tunnel 5 | . 1 . . . 1 . 2 . . . . . . . . . . 1 . . . Scanalyzers 5 | . . . . . 2 . 2 . . . 1 . . . . . . . . . . Extract 5 | . . . . . 2 . 2 . . . 1 . . . . . . . . . . Garrison Access 1 | . . . . . 1 . . . . . . . . . . . . . . . . Watchers 1 | . . . . . 1 . . . . . . . . . . . . . . . . Data Cores Recovered 8 | . 1 . . . 2 . 2 . 1 . . . . . . . 1 . . . 1 Used 1 | . . . . . . . . . 1 . . . . . . . . . . . . Hacking Detections 49 | . 6 . . . 11 1 9 2 1 2 2 . . . . . 2 5 2 . 6 Full Trace Events 17 | . 1 . . . 4 1 3 1 . 1 . . . . . . 1 4 1 . . Feedback Events 1 | . . . . . . . . . . . . . . . . . . 1 . . . Corruption 1 | . . . . . . . . . . . . . . . . . . 1 . . . Feedback Blocked . | . . . . . . . . . . . . . . . . . . . . . . Robot Schematics Acquired 6 | . . . . . . . . . . . . . . . 5 . . . . . 1 Robots Built . | . . . . . . . . . . . . . . . . . . . . . . Authchips . | . . . . . . . . . . . . . . . . . . . . . . Time . | . . . . . . . . . . . . . . . . . . . . . . Total Robot Build Rating . | . . . . . . . . . . . . . . . . . . . . . . Part Schematics Acquired 30 | . . . . . 10 . 2 . . . 1 . . . 11 . 1 . . . 5 Parts Built . | . . . . . . . . . . . . . . . . . . . . . . Authchips . | . . . . . . . . . . . . . . . . . . . . . . Time . | . . . . . . . . . . . . . . . . . . . . . . Total Part Build Rating . | . . . . . . . . . . . . . . . . . . . . . . Parts Repaired . | . . . . . . . . . . . . . . . . . . . . . . Time . | . . . . . . . . . . . . . . . . . . . . . . Parts Recycled . | . . . . . . . . . . . . . . . . . . . . . . Recycled Matter . | . . . . . . . . . . . . . . . . . . . . . . Retrieved Matter 154 | . . . . . 154 . . . . . . . . . . . . . . . . Retrieved Components . | . . . . . . . . . . . . . . . . . . . . . . Parts Scanalyzed 1 | . . . . . . . . . . . . . . . . . 1 . . . . Part Schematics Acquired 1 | . . . . . . . . . . . . . . . . . 1 . . . . Parts Damaged . | . . . . . . . . . . . . . . . . . . . . . . Bothacking | -11 -10 -10 -10 -9 -8 -8 -8 -8 -8 -8 -8 -7 -7 -7 -7 -6 -6 -6 -6 -6 -6 ------------ Run | Jun Mat Min Exi Min Mat Gar Mat Gar Mat Gar Mat Fac Low Low Dat Pro Fac Ext Cet Arc Hub Used RIF Installer . | . . . . . . . . . . . . . . . . . . . . . . Robots Hacked . | . . . . . . . . . . . . . . . . . . . . . . Non-combat . | . . . . . . . . . . . . . . . . . . . . . . Combat . | . . . . . . . . . . . . . . . . . . . . . . Robot Hacks Applied . | . . . . . . . . . . . . . . . . . . . . . . Relay Couplers Released 31 | . . . . . . 15 . 6 . 10 . . . . . . . . . . . Machine Destruction 31 | . . . . . . 15 . 6 . 10 . . . . . . . . . . . Fabnet Peak Effective % . | . . . . . . . . . . . . . . . . . . . . . . Robots Rewired 29 | . . . . . . . . 10 . 2 . . . . . 2 . 15 . . . Allies Hacked . | . . . . . . . . . . . . . . . . . . . . . . Hacks Repelled . | . . . . . . . . . . . . . . . . . . . . . . Allies | -11 -10 -10 -10 -9 -8 -8 -8 -8 -8 -8 -8 -7 -7 -7 -7 -6 -6 -6 -6 -6 -6 -------- Run | Jun Mat Min Exi Min Mat Gar Mat Gar Mat Gar Mat Fac Low Low Dat Pro Fac Ext Cet Arc Hub Total Allies 46 | . . 2 . . . 1 . 11 . 2 . . . . . 3 . 23 4 . . Largest Group 23 | . . 2 . . . 1 . 11 11 10 7 . . . . 3 3 22 23 19 10 Highest-Rated Group 1038 | . . 41 . . . 20 . 183 183 158 156 . . . . 146 146 743 1038 858 462 Highest-Rated Ally 159 | . . 31 . . . 20 . 31 31 31 31 . . . . 96 96 159 159 159 96 Warlord Squad Rendezvous 1 | . . . . . . . . . . . . . . . . . 1 . . . . Geek 1 | . . . . . . . . . . . . . . . . . 1 . . . . Total Orders . | . . . . . . . . . . . . . . . . . . . . . . Ally Attacks 258 | . . . . . . . . . 4 44 24 . . . . 16 3 71 43 13 40 Total Damage 6537 | . . . . . . . . . 36 568 468 . . . . 580 43 1885 1122 347 1488 Kills 53 | . . . . . . . . . 2 6 4 . . . . 3 . 18 7 . 13 Allies Corrupted 3 | . . . . . . . . . . . . . . . . . . . . . 3 Allies Melted . | . . . . . . . . . . . . . . . . . . . . . . Intel | -11 -10 -10 -10 -9 -8 -8 -8 -8 -8 -8 -8 -7 -7 -7 -7 -6 -6 -6 -6 -6 -6 ------- Run | Jun Mat Min Exi Min Mat Gar Mat Gar Mat Gar Mat Fac Low Low Dat Pro Fac Ext Cet Arc Hub Robot Analysis Total 12 | . 3 . . 2 2 . 3 . . . . . . . . . . . . . 2 Derelict Logs Recovered 9 | . . 1 . 1 . . . . . . . . 2 2 . 3 . . . . . Drone Launches . | . . . . . . . . . . . . . . . . . . . . . . Drone Recoveries . | . . . . . . . . . . . . . . . . . . . . . . Exploration | -11 -10 -10 -10 -9 -8 -8 -8 -8 -8 -8 -8 -7 -7 -7 -7 -6 -6 -6 -6 -6 -6 ------------- Run | Jun Mat Min Exi Min Mat Gar Mat Gar Mat Gar Mat Fac Low Low Dat Pro Fac Ext Cet Arc Hub Turns Passed 13427 | . 1939 606 203 441 1270 1046 953 791 94 906 479 229 497 683 70 1020 352 470 508 337 533 Spaces Moved 12309 | 1 949 604 267 505 1325 1110 964 762 93 933 457 250 738 751 78 965 327 538 307 149 236 Core . | . . . . . . . . . . . . . . . . . . . . . . Treads 596 | . . . . . . . . . . . . . . . . . . . 211 149 236 Legs 2903 | 1 292 . . . . 2 . . . . . . . 604 78 965 327 538 96 . . Wheels 990 | . 657 333 . . . . . . . . . . . . . . . . . . . Hover 7820 | . . 271 267 505 1325 1108 964 762 93 933 457 250 738 147 . . . . . . . Flight . | . . . . . . . . . . . . . . . . . . . . . . Fastest Speed 45 | 120 100 65 65 65 58 58 58 58 65 63 63 63 63 63 90 45 45 45 45 160 160 Average Speed 74 | 120 107 87 65 65 59 61 60 58 65 64 63 63 63 84 90 87 63 47 132 160 160 Slowest Speed 190 | 120 190 115 65 65 65 170 77 67 65 65 63 63 63 90 90 90 90 90 170 160 160 Overloaded Moves 852 | . . . . . . . . . . . . . . . . 56 196 513 87 . . Propulsion Burnouts . | . . . . . . . . . . . . . . . . . . . . . . Robots Hopped . | . . . . . . . . . . . . . . . . . . . . . . Cave-ins Triggered 1 | . . . . . . . . . . . . . . . . . 1 . . . . Exploration Rate (%) 70 | 2 99 98 61 93 90 91 87 90 14 95 47 10 96 96 70 96 14 77 81 86 58 Regions Visited 21 Branch Regions 11 Pre-discovered Areas 8 | . 1 1 . . 1 . 2 . . . . . 1 . 1 . . 1 . . . Known Exits Taken 10 | . . . . . 1 . 1 . 1 . . 1 1 1 1 1 1 1 . . . Unknown Exits Taken 8 | 1 1 1 1 1 . . . . . . 1 . . . . . . . 1 1 . Scrap Searched 12 | . . . . 2 . . . . . . . . 2 6 . 2 . . . . . Spaces Dug 465 | . . . . 1 76 . 74 . 30 . 32 21 8 . . 16 8 4 . 1 194 Terrain Destroyed 2529 | . 289 1 . 44 279 . 496 85 33 53 161 115 23 40 . 57 188 76 12 15 562 Melee . | . . . . . . . . . . . . . . . . . . . . . . Projectile 1064 | . . 1 . 44 213 . 222 . 6 . 147 58 23 40 . 57 51 76 12 15 99 AOE 1465 | . 289 . . . 66 . 274 85 27 53 14 57 . . . . 137 . . . 463 Terrain Rammed . | . . . . . . . . . . . . . . . . . . . . . . Walls Destroyed . | . . . . . . . . . . . . . . . . . . . . . . Machines Disabled . | . . . . . . . . . . . . . . . . . . . . . . Actions | -11 -10 -10 -10 -9 -8 -8 -8 -8 -8 -8 -8 -7 -7 -7 -7 -6 -6 -6 -6 -6 -6 --------- Run | Jun Mat Min Exi Min Mat Gar Mat Gar Mat Gar Mat Fac Low Low Dat Pro Fac Ext Cet Arc Hub Total 16225 | . 1505 664 297 617 1800 1471 1334 1109 126 1237 664 327 772 802 77 1145 473 754 410 250 391 Wait 1841 | . 301 31 19 63 263 201 199 128 25 176 81 17 5 3 . 109 78 64 16 43 19 Move 12285 | . 948 603 266 504 1324 1107 963 761 93 931 456 249 737 750 77 964 325 537 306 148 236 Hop . | . . . . . . . . . . . . . . . . . . . . . . Pick Up 49 | . 3 3 4 . 2 4 6 . . 1 . . . 5 . 3 3 3 4 7 1 Fast Attach 78 | . 12 2 3 1 10 7 4 2 . 3 1 1 3 1 . 1 4 3 14 5 1 Attach 13 | . 1 3 . . . 1 1 1 . . . . . . . 2 . . 4 . . Detach 7 | . . . . . . . . 1 . . . . . . . 1 . 1 3 1 . Swap 21 | . 5 1 . . . 3 . . . 1 . . . 2 . . . 2 3 2 2 Drop 107 | . 9 4 5 1 7 12 8 2 . 4 . . 3 5 . 4 7 4 20 10 2 Fire 1293 | . 200 10 . 33 165 96 134 77 5 81 113 45 17 25 . 43 41 70 24 19 95 Melee . | . . . . . . . . . . . . . . . . . . . . . . Ram . | . . . . . . . . . . . . . . . . . . . . . . Kick . | . . . . . . . . . . . . . . . . . . . . . . Crush . | . . . . . . . . . . . . . . . . . . . . . . Escape Stasis 90 | . . . . . . 26 . 48 . 15 . . . . . . 1 . . . . Rewire 134 | . . . . . . . . 78 . 8 . . . . . 5 . 43 . . . Trap . | . . . . . . . . . . . . . . . . . . . . . . Miscellaneous 307 | . 26 7 . 15 29 14 19 11 3 17 13 15 7 11 . 13 14 27 16 15 35 Route ------- -11/Junkyard -10/Materials (discovered 4 exits: *Mat x3 / [*Min]) -10/Mines (discovered 3 exits: *Mat x2 / *Exi) -10/Exiles -9/Mines (discovered 2 exits: *Mat x2) -8/Materials (discovered 3 exits: *Fac x2 / Gar) -8/Garrison (discovered 3 exits: *Mat x3) -8/Materials (discovered 4 exits: *Fac x3 / Gar) -8/Garrison (discovered 3 exits: *Mat x3) -8/Materials -8/Garrison (discovered 3 exits: *Mat x3) -8/Materials -7/Factory (discovered 2 exits: *Low / Gar) -7/Lower Caves -7/Lower Caves (discovered 2 exits: *Fac / *Dat) -7/Data Miner -6/Proximity Caves -6/Factory (discovered 6 exits: [*Fac] / Low x2 / *Ext x2 / Gar) -6/Extension (discovered 3 exits: [*Fac x2] / *Cet) -6/Cetus (discovered 2 exits: [*Fac] / *Arc) -6/Archives (discovered 3 exits: [*Fac] / *Hub x2) -6/Hub_04(d) (discovered 1 exit: [*Fac]) History --------- Turn | Location | Event 1 | -11/Junkyard | Discovered new exit (range 0) 1 | -11/Junkyard | Entered Materials 13 | -10/Materials | Upgraded with Utility slot (x2) 13 | -10/Materials | Upgraded with Weapon slot (x1) 186 | -10/Materials | Discovered new exit (range 8) 287 | -10/Materials | Discovered new exit (range 6) 318 | -10/Materials | Build established: Mutant 531 | -10/Materials | Reached level 2 751 | -10/Materials | Discovered new exit (range 4) 844 | -10/Materials | Build established: Hacker-Mutant 851 | -10/Materials | Central database locked down 866 | -10/Materials | Reached level 3 1008 | -10/Materials | Discovered new exit (range 5) 1447 | -10/Materials | Identified exit to Materials 1494 | -10/Materials | Reached level 4 1628 | -10/Materials | Reached level 5 1940 | -10/Materials | Entered Mines 1991 | -10/Mines | Deemed a non-threat by the Exiles lab entrance 1991 | -10/Mines | Discovered new exit (range 5) 2046 | -10/Mines | Found a hidden stash of uninstalled traps 2064 | -10/Mines | Discovered exit to Materials (range 13) 2193 | -10/Mines | Assembled infested the area 2198 | -10/Mines | Assisted by a Guerilla fighting off Assembled 2319 | -10/Mines | Upgraded with Propulsion slot (x1) 2330 | -10/Mines | Upgraded with Propulsion slot (x1) 2399 | -10/Mines | Discovered exit to Materials (range 4) 2444 | -10/Mines | Upgraded with Propulsion slot (x1) 2444 | -10/Mines | Upgraded with Utility slot (x1) 2444 | -10/Mines | Upgraded with Weapon slot (x1) 2546 | -10/Mines | Entered Exiles 2548 | -10/Exiles | Reached level 6 2565 | -10/Exiles | Met 8R-AWN 2576 | -10/Exiles | Met EX-HEX 2593 | -10/Exiles | Met EX-BIN 2601 | -10/Exiles | Aligned with FarCom system 2602 | -10/Exiles | Given EX-Vault access code 2617 | -10/Exiles | Opened EX-Vault 2619 | -10/Exiles | Upgraded with Weapon slot (x1) 2623 | -10/Exiles | Found XL Autogun Array 2626 | -10/Exiles | Found Modified TNC 2630 | -10/Exiles | Found Potential Leg 2631 | -10/Exiles | Found Potential Leg 2646 | -10/Exiles | Warned to stay clear of 0b10 Research branches 2664 | -10/Exiles | Met EX-DEC 2744 | -10/Exiles | Discovered new exit (range 10) 2749 | -10/Exiles | Stole three prototypes: Modified TNC, XL Autogun Array, Potential Leg 2749 | -10/Exiles | Entered Mines 2783 | -9/Mines | Discovered new exit (range 6) 2784 | -9/Mines | Learned Materials garrison access intel 2857 | -9/Mines | Reached level 7 2882 | -9/Mines | Central database locked down 2941 | -9/Mines | Upgraded with Utility slot (x1) 3074 | -9/Mines | Build established: Hacker-Gunner 3119 | -9/Mines | Discovered new exit (range 11) 3128 | -9/Mines | Received a Rocket Launcher from a helpful Derelict 3190 | -9/Mines | Entered Materials 3191 | -8/Materials | Loaded intel: 1 garrison access location 3192 | -8/Materials | Reached level 8 3206 | -8/Materials | Identified exit to Garrison 3223 | -8/Materials | Reached level 9 3229 | -8/Materials | Garrison activated, responded to threat 3250 | -8/Materials | Upgraded with Propulsion slot (x1) 3304 | -8/Materials | Destroyed 11 combat bots 3347 | -8/Materials | Reached level 10 3397 | -8/Materials | Central database locked down 3604 | -8/Materials | Discovered new exit (range 13) 3645 | -8/Materials | Reached level 11 3838 | -8/Materials | Reached level 12 4014 | -8/Materials | Central database locked down 4045 | -8/Materials | Upgraded with Utility slot (x1) 4059 | -8/Materials | Garrison activated, responded to threat 4112 | -8/Materials | Reached level 13 4246 | -8/Materials | Discovered new exit (range 16) 4390 | -8/Materials | First assault squad dispatched 4412 | -8/Materials | Sterilization system engaged 4412 | -8/Materials | Non-combat units ordered to evacuate 4460 | -8/Materials | Entered Garrison 4508 | -8/Garrison | Triggered checkpoint 4551 | -8/Garrison | Reached level 14 4555 | -8/Garrison | Triggered checkpoint 4595 | -8/Garrison | Destroyed 9 combat bots 4608 | -8/Garrison | Garrison Relay disabled 4643 | -8/Garrison | Rescued a captive Derelict 4726 | -8/Garrison | Garrison Relay disabled 4726 | -8/Garrison | Garrison Relay disabled 4727 | -8/Garrison | Garrison Relay disabled 4727 | -8/Garrison | Garrison Relay disabled 4753 | -8/Garrison | Discovered new exit (range 5) 4772 | -8/Garrison | Triggered checkpoint 4866 | -8/Garrison | Garrison Relay disabled 4870 | -8/Garrison | Discovered new exit (range 36) 4870 | -8/Garrison | Discovered new exit (range 68) 4870 | -8/Garrison | Discovered new exit (range 25) 4870 | -8/Garrison | Identified exit to Materials 4984 | -8/Garrison | Garrison Relay disabled 5183 | -8/Garrison | Triggered checkpoint 5187 | -8/Garrison | Reached level 15 5215 | -8/Garrison | Garrison Relay disabled 5235 | -8/Garrison | Upgraded with Power slot (x1) 5506 | -8/Garrison | Entered Materials 5883 | -8/Materials | Discovered new exit (range 3) 5906 | -8/Materials | First assault squad dispatched 6018 | -8/Materials | Discovered new exit (range 10) 6296 | -8/Materials | Discovered new exit (range 3) 6381 | -8/Materials | Garrison activated, responded to threat 6429 | -8/Materials | Reached level 16 6429 | -8/Materials | High security lockdown imminent 6455 | -8/Materials | Identified exit to Garrison 6459 | -8/Materials | Entered Garrison 6461 | -8/Garrison | Destroyed 11 combat bots 6480 | -8/Garrison | Triggered checkpoint 6507 | -8/Garrison | Garrison Relay disabled 6520 | -8/Garrison | Triggered checkpoint 6528 | -8/Garrison | Triggered checkpoint 6556 | -8/Garrison | Destroyed 9 combat bots 6565 | -8/Garrison | Discovered new exit (range 16) 6584 | -8/Garrison | Triggered checkpoint 6585 | -8/Garrison | Garrison Relay disabled 6634 | -8/Garrison | Phase Generator disabled 6705 | -8/Garrison | Rescued a captive Derelict 6724 | -8/Garrison | Triggered checkpoint 6763 | -8/Garrison | Triggered checkpoint 6798 | -8/Garrison | Garrison Relay disabled 7009 | -8/Garrison | Discovered new exit (range 11) 7066 | -8/Garrison | Triggered checkpoint 7070 | -8/Garrison | Garrison Relay disabled 7149 | -8/Garrison | Discovered new exit (range 14) 7154 | -8/Garrison | Learned Materials security intel 7154 | -8/Garrison | Learned Materials security intel 7154 | -8/Garrison | Identified exit to Materials 7250 | -8/Garrison | Entered Materials 7250 | -8/Materials | Accompanied by 11 allies 7332 | -8/Materials | Identified exit to Garrison 7344 | -8/Materials | Entered Garrison 7344 | -8/Garrison | Accompanied by 10 allies 7376 | -8/Garrison | Triggered checkpoint 7377 | -8/Garrison | Garrison Relay disabled 7389 | -8/Garrison | Garrison Relay disabled 7416 | -8/Garrison | Triggered checkpoint 7458 | -8/Garrison | Triggered checkpoint 7467 | -8/Garrison | Triggered checkpoint 7470 | -8/Garrison | Triggered checkpoint 7473 | -8/Garrison | Build established: Commander-Gunner 7494 | -8/Garrison | Triggered checkpoint 7510 | -8/Garrison | Discovered new exit (range 12) 7533 | -8/Garrison | Triggered checkpoint 7557 | -8/Garrison | Triggered checkpoint 7574 | -8/Garrison | Learned Materials security intel 7580 | -8/Garrison | Garrison Relay disabled 7623 | -8/Garrison | Discovered new exit (range 12) 7656 | -8/Garrison | Triggered checkpoint 7670 | -8/Garrison | Reached level 17 7671 | -8/Garrison | Garrison Relay disabled 7732 | -8/Garrison | Triggered checkpoint 7771 | -8/Garrison | Garrison Relay disabled 7780 | -8/Garrison | Discovered new exit (range 3) 7828 | -8/Garrison | Discovered new exit (range 75) 7828 | -8/Garrison | Discovered new exit (range 70) 7828 | -8/Garrison | Discovered new exit (range 23) 7853 | -8/Garrison | Build established: Hacker-Gunner 7882 | -8/Garrison | Phase Generator disabled 7936 | -8/Garrison | Upgraded with Utility slot (x1) 8161 | -8/Garrison | Attempted to access garrison exit controls, blocked by remote lockdown 8250 | -8/Garrison | Entered Materials 8250 | -8/Materials | Accompanied by 7 allies 8398 | -8/Materials | High security lockdown imminent 8427 | -8/Materials | Destroyed 7 combat bots 8478 | -8/Materials | High security lockdown engaged 8569 | -8/Materials | Discovered new exit (range 10) 8617 | -8/Materials | Destroyed 34 combat bots 8641 | -8/Materials | Sterilization system engaged 8641 | -8/Materials | Non-combat units ordered to evacuate 8658 | -8/Materials | Destroyed 9 combat bots 8722 | -8/Materials | Destroyed 10 combat bots 8729 | -8/Materials | Entered Factory 8731 | -7/Factory | FarCom data flow suspended 8744 | -7/Factory | High security lockdown imminent 8745 | -7/Factory | Reached level 18 8746 | -7/Factory | Upgraded with Utility slot (x1) 8793 | -7/Factory | Identified exit to Garrison 8824 | -7/Factory | High security lockdown engaged 8876 | -7/Factory | Discovered new exit (range 7) 8879 | -7/Factory | Identified exit to Lower Caves 8951 | -7/Factory | Destroyed 9 combat bots 8958 | -7/Factory | Entered Lower Caves 8975 | -7/Lower Caves | Met a Warlord Commander 8976 | -7/Lower Caves | Learned location of Warlord (-5) 8979 | -7/Lower Caves | Found Encrypted Comm Array 9026 | -7/Lower Caves | Spotted B-75 Beast 9032 | -7/Lower Caves | Destroyed B-75 Beast 9152 | -7/Lower Caves | Learned Factory terminal intel 9159 | -7/Lower Caves | Learned Factory terminal intel 9210 | -7/Lower Caves | Discovered new exit (range 13) 9222 | -7/Lower Caves | Identified exit to Lower Caves 9278 | -7/Lower Caves | Build established: Scavenger-Gunner 9455 | -7/Lower Caves | Entered another Lower Caves area 9501 | -7/Lower Caves | Encountered a Warlord checkpoint 9556 | -7/Lower Caves | Spotted 9A-TK3(f) 9556 | -7/Lower Caves | Spotted U8-D3P(f) 9556 | -7/Lower Caves | Spotted O9-6YX(f) 9557 | -7/Lower Caves | Encountered a Master Thief 9557 | -7/Lower Caves | Encountered a Master Thief 9557 | -7/Lower Caves | Encountered a Master Thief 9558 | -7/Lower Caves | Potential Leg stolen by Master Thief 9559 | -7/Lower Caves | Destroyed 9A-TK3(f) 9560 | -7/Lower Caves | Destroyed O9-6YX(f) 9561 | -7/Lower Caves | Destroyed U8-D3P(f) 9576 | -7/Lower Caves | Discovered new exit (range 10) 9598 | -7/Lower Caves | Identified exit to Data Miner 9702 | -7/Lower Caves | Spotted B-75 Beast 9707 | -7/Lower Caves | Destroyed B-75 Beast 9875 | -7/Lower Caves | Build established: Hacker-Gunner 9881 | -7/Lower Caves | Learned Factory stockpile data 9926 | -7/Lower Caves | Learned Factory emergency access door positions 9983 | -7/Lower Caves | Discovered new exit (range 4) 9984 | -7/Lower Caves | Identified exit to Factory 10138 | -7/Lower Caves | Entered Data Miner 10138 | -7/Data Miner | Discovered new exit (range 6) 10155 | -7/Data Miner | Met Data Miner 10173 | -7/Data Miner | Learned location of Section 7 (-2) 10173 | -7/Data Miner | Acquired the access code to Warlord's prototype stash 10189 | -7/Data Miner | Received God Mode back door access code from Data Miner 10207 | -7/Data Miner | Identified exit to Proximity Caves 10208 | -7/Data Miner | Entered Proximity Caves 10282 | -6/Proximity Caves | Reached level 19 10283 | -6/Proximity Caves | Escorted by Enhanced Grunt 10386 | -6/Proximity Caves | Learned location of 1 exit from Lower Caves 10389 | -6/Proximity Caves | Learned Factory trap positions 10520 | -6/Proximity Caves | Acquired the password to a Derelict Tinkerer's latest research 10526 | -6/Proximity Caves | Found Prototype Special Weapon 10528 | -6/Proximity Caves | Identified Molecular Deconstructor 10550 | -6/Proximity Caves | Spotted B-75 Beast 10557 | -6/Proximity Caves | Destroyed B-75 Beast 10603 | -6/Proximity Caves | Discovered exit to Factory (range 10) 10605 | -6/Proximity Caves | Learned location of 1 exit from Proximity Caves 10835 | -6/Proximity Caves | Build established: Scavenger-Gunner 10854 | -6/Proximity Caves | Attracted the attention of an 0b10 outpost 10895 | -6/Proximity Caves | Destroyed 8 combat bots 11228 | -6/Proximity Caves | Entered Factory 11228 | -6/Factory | Accompanied by 3 allies 11229 | -6/Factory | Loaded intel: 101 trap records 11232 | -6/Factory | Loaded intel: 28 terminal locations 11260 | -6/Factory | Found Prototype Launcher 11260 | -6/Factory | Identified Scatter Rocket Array 11314 | -6/Factory | Identified exit to Garrison 11361 | -6/Factory | Reached level 20 11395 | -6/Factory | Discovered new exit (range 10) 11412 | -6/Factory | Crushed by falling debris 11413 | -6/Factory | Joined by Warlord Geek squad 11458 | -6/Factory | Spotted B-75 Beast 11467 | -6/Factory | Core integrity fell below 50% 11481 | -6/Factory | Incoming investigation squad redirected 11481 | -6/Factory | Identified exit to Lower Caves 11481 | -6/Factory | Identified exit to Extension 11538 | -6/Factory | Build established: Hacker-Gunner 11578 | -6/Factory | First assault squad dispatched 11580 | -6/Factory | Entered Extension 11580 | -6/Extension | Accompanied by 1 ally 11596 | -6/Extension | Rescued A7 11638 | -6/Extension | Rescued a captive Derelict 11640 | -6/Extension | Rescued a captive Derelict 11648 | -6/Extension | Identified exit to Cetus 11683 | -6/Extension | Incoming investigation squad redirected 11689 | -6/Extension | Rescued a captive Derelict 11713 | -6/Extension | Rescued a captive Derelict 11714 | -6/Extension | Rescued a captive Derelict 11726 | -6/Extension | Spotted B-75 Beast 11732 | -6/Extension | Spotted B-75 Beast 11733 | -6/Extension | Destroyed B-75 Beast 11741 | -6/Extension | Destroyed B-75 Beast 11769 | -6/Extension | Discovered new exit (range 3) 11780 | -6/Extension | Disrupted transfer network 11799 | -6/Extension | Rescued a captive Derelict 11799 | -6/Extension | Rescued a captive Derelict 11830 | -6/Extension | Reached level 21 11911 | -6/Extension | Destroyed 7 combat bots 11926 | -6/Extension | Incoming investigation squad redirected 11930 | -6/Extension | First assault squad dispatched 11946 | -6/Extension | Incoming assault squad redirected 11991 | -6/Extension | Discovered new exit (range 10) 12011 | -6/Extension | Disrupted transfer network 12050 | -6/Extension | Entered Cetus 12050 | -6/Cetus | Accompanied by 19 allies (A7) 12055 | -6/Cetus | Acquired a Cetus Manufacturing Module code from A7 12057 | -6/Cetus | Spotted Cetus Guard 12058 | -6/Cetus | Spotted Cetus Guard 12060 | -6/Cetus | Spotted Cetus Guard 12061 | -6/Cetus | Destroyed Cetus Guard 12062 | -6/Cetus | Spotted Cetus Guard 12064 | -6/Cetus | Destroyed Cetus Guard 12065 | -6/Cetus | Allies destroyed Cetus Guard 12067 | -6/Cetus | Allies destroyed Cetus Guard 12176 | -6/Cetus | Escorted A7 to Cetus Mainframe 12193 | -6/Cetus | Started Cetus Manufacturing Module 12218 | -6/Cetus | Manufactured an Enhanced Grunt 12243 | -6/Cetus | Manufactured an Enhanced Grunt 12259 | -6/Cetus | Reached level 22 12266 | -6/Cetus | Upgraded with Weapon slot (x1) 12268 | -6/Cetus | Manufactured an Enhanced Grunt 12277 | -6/Cetus | Discovered new exit (range 17) 12293 | -6/Cetus | Manufactured an Enhanced Grunt 12297 | -6/Cetus | Cetus Manufacturing Module disabled 12304 | -6/Cetus | Spotted Cetus Guard 12305 | -6/Cetus | Spotted Cetus Guard 12312 | -6/Cetus | Destroyed Cetus Guard 12312 | -6/Cetus | Spotted Cetus Guard 12315 | -6/Cetus | Spotted Cetus Guard 12318 | -6/Cetus | Allies destroyed Cetus Guard 12324 | -6/Cetus | Discovered new exit (range 18) 12327 | -6/Cetus | Allies destroyed Cetus Guard 12328 | -6/Cetus | Destroyed Cetus Guard 12338 | -6/Cetus | Met Revision 17 12388 | -6/Cetus | Build established: Commander-Gunner 12558 | -6/Cetus | Entered Archives 12558 | -6/Archives | Accompanied by 19 allies (A7) 12563 | -6/Archives | Received a hacking code to weaken MAIN.C 12583 | -6/Archives | Unable to access archive contents 12585 | -6/Archives | Discovered new exit (range 17) 12601 | -6/Archives | Unable to access archive contents 12602 | -6/Archives | Discovered new exit (range 17) 12617 | -6/Archives | Unable to access archive contents 12618 | -6/Archives | Discovered new exit (range 17) 12633 | -6/Archives | Unable to access archive contents 12895 | -6/Archives | Entered Hub_04(d) 12895 | -6/Hub_04(d) | Accompanied by 10 allies 12918 | -6/Hub_04(d) | Central database locked down 12953 | -6/Hub_04(d) | Garrison activated, responded to threat 13131 | -6/Hub_04(d) | Network Hub disabled 13162 | -6/Hub_04(d) | Build established: Wizard-Gunner 13163 | -6/Hub_04(d) | Discovered new exit (range 17) 13176 | -6/Hub_04(d) | Network Hub disabled 13191 | -6/Hub_04(d) | Spotted Lightning 13192 | -6/Hub_04(d) | Spotted Lightning 13193 | -6/Hub_04(d) | Spotted Lightning 13204 | -6/Hub_04(d) | Destroyed Lightning 13209 | -6/Hub_04(d) | Destroyed Lightning 13213 | -6/Hub_04(d) | Core integrity fell below 20% 13213 | -6/Hub_04(d) | Destroyed Lightning 13239 | -6/Hub_04(d) | Found Prototype Processor 13239 | -6/Hub_04(d) | Identified Exp. Targeting Computer 13245 | -6/Hub_04(d) | First assault squad dispatched 13260 | -6/Hub_04(d) | System corruption reached 10% 13303 | -6/Hub_04(d) | Reached level 23 13346 | -6/Hub_04(d) | Disrupted transfer network 13404 | -6/Hub_04(d) | Network Hub disabled 13404 | -6/Hub_04(d) | Spotted Lightning 13404 | -6/Hub_04(d) | Spotted Lightning 13404 | -6/Hub_04(d) | Spotted Lightning 13407 | -6/Hub_04(d) | Destroyed Lightning 13413 | -6/Hub_04(d) | Destroyed Lightning 13417 | -6/Hub_04(d) | Spotted Lightning 13418 | -6/Hub_04(d) | Spotted Lightning 13426 | -6/Hub_04(d) | Destroyed Lightning 13428 | -6/Hub_04(d) | Destroyed by Lightning with EMDS Last Messages --------------- 13412_ Penetrated by EMDS Slug. 13413_ Lightning destroyed. 13414_ Penetrated by EMDS Slug. 13414_ EMDS Slug penetrates Earth. 13414_ Penetrated by EMDS Slug. 13416_ System corrupted: FCS attempts to trigger Adv. Variable Charge Gun. 13416_ System corrupted: Adv. Variable Charge Gun misfires. 13416_ Upgraded: Core Integrity (+300) 13416_ Upgraded: Sight Range (+1) 13416_ Upgraded: Ranged Accuracy (+5) 13418_ Power Amplifier fried. 13418_ I-47 Archangel destroyed. 13419_ Penetrated by EMDS Slug. 13420_ Upgraded: Heat Dissipation (+6) 13421_ Penetrated by EMDS Slug. 13424_ Destroyed Exp. Targeting Computer. 13425_ Penetrated by EMDS Slug. 13426_ Destroyed Prototype Energy Cannon. 13426_ Lightning destroyed. 13428_ Penetrated by EMDS Slug. Map ----- +----------------------------------------------------+ | " < =## !!#????????? | | " ## #????????? | | ""#" ^ ! ## [#????????? | | "# " "# #?####???? | | ## " ^= [[ "" # ####? | | ?# " *[ [[ "#"#"## """#? | | ###" ^*! [[ "#? | | ?+ !%^ %! %* "#? | | ?####=%%* ] [ "#? | | ???#" [^ ## ""#? | | #####" " #? ####? | | # [ #??####???? | | # ===/ ########### | | # !%! # # | | # ###""#####"# = # " # | | # ??## ## #%%=" ""T"" " # | | + ???# " #### [^%%""""" " # | | # ????# " #??# [" # | | # ????# " #?## ""#+####### | | ## ????# #?# "# #?????? | | ?#?????# " ### =[ ## #????## | | ??^????+ " + =%% ## ##### | | ???????# " ### ! ## # # | | ?^?????# # # ## # # | | ????^??# ;;;;;;;;;;;;;;; #? | | ?^?????# ; @; # | | ???????# ; ;#?? | | ???????# ;= ;#?? | | ???????####;%[ ;#?? | | ???????#??#;%[! ] ;#?? | | ???????#??##;! ! !] ;#?? | | ???????#???##;;;;;;;;;;; ;;#?? | | ???????#???# ; ; #?? | | ???????????# ; ; ?? | | ??????????# ;=!* ; ?? | | ??????????? ]=%%! ; ?? | | ???????####%=;;!!! ; ?? | | ??????? h!%%%%* ; #? | | ??????? *h;!! ; #? | | ???????######;; ; #? | | ??????????????# ; #? | | ??????????????# ; #? | | ??????????????# ; ?? | | ???????????????????????;;; #?? | | ?????????????????????????????? | | ?????????????????????????????? | | ?????????????????????????????? | | ?????????????????????????????? | | ?????????????????????????????? | | ?????????????????????????????? | +----------------------------------------------------+ Best States ------------- Heat Dissipation 67 Energy Generation 45 Energy Capacity 750 Matter Stores 400 Matter Capacity 500 Sight Range 19 Robot Scan Range 4 Terrain Scan Density 10 Jamming Range 12 Armor Coverage 900 Resistance: KI 25 Resistance: TH 10 Weapon Cycling 15 Phase Shifting 5 Evasion (%) 71 Targeting Accuracy 20 Core Analysis 6 Armor Integrity Analysis 30 Recoil Reduction 4 Kinecelleration 40 Offensive Hacking 51 Defensive Hacking 39 Item Schematics ----------------- Missile Launcher | -8/Materials | Extracted Datajack | -8/Materials | Extracted Imp. Terrain Scan Processor | -8/Materials | Extracted Reflective Plating | -8/Materials | Extracted Terrain Scan Processor | -8/Materials | Extracted Autogun | -8/Materials | Extracted Pulse Rifle | -8/Materials | Extracted Enh. Autogun | -8/Materials | Extracted Visual Processing Unit | -8/Materials | Extracted Imp. Aluminum Leg | -8/Materials | Extracted Lgt. Cannon | -8/Materials | Extracted Hardlight Generator | -8/Materials | Extracted Field Laser | -8/Materials | Extracted Thermal Defense Suite | -7/Data Miner | Free Combat Drone Bay | -7/Data Miner | Free Lgt. Regenerative Plating | -7/Data Miner | Free Biomechanical Wings | -7/Data Miner | Free Imp. Heavy Machine Gun | -7/Data Miner | Free Hvy. Treads | -7/Data Miner | Free Imp. Thermal Shield | -7/Data Miner | Free Wave Gun | -7/Data Miner | Free Hyb. Fission Core | -7/Data Miner | Free Imp. Component Analysis Suite | -7/Data Miner | Free Imp. Fusion Compressor | -7/Data Miner | Free Nanoactuators | -6/Factory | Scanalyzed Imp. Armor Integrity Analyzer | -6/Hub_04(d) | Hacked Adv. Hacking Suite | -6/Hub_04(d) | Hacked Railgun | -6/Hub_04(d) | Hacked Adv. Particle Charger | -6/Hub_04(d) | Hacked Matter Compressor | -6/Hub_04(d) | Hacked Robot Schematics ------------------ S-27 Virus | -7/Data Miner | Free W-25 Informer | -7/Data Miner | Free A-15 Conveyor | -7/Data Miner | Free O-24 Administrator | -7/Data Miner | Free B-60 Warrior | -7/Data Miner | Free L-41 Fighter | -6/Hub_04(d) | Hacked Fabricated ------------ Nothing Alien Tech Used ----------------- None Achievements -------------- Main Advantage Challenges ------------ None RPGLIKE | -11 -10 -10 -10 -9 -8 -8 -8 -8 -8 -8 -8 -7 -7 -7 -7 -6 -6 -6 -6 -6 -6 --------- Run | Jun Mat Min Exi Min Mat Gar Mat Gar Mat Gar Mat Fac Low Low Dat Pro Fac Ext Cet Arc Hub Levels Raised 22 | . 4 . 1 1 6 2 1 . . 1 . 1 . . . 1 1 1 1 . 1 XP Earned 36124 | 3000 6577 786 211 2663 8800 2026 1561 773 70 818 738 952 185 206 105 1433 1130 2041 769 202 1078 XP Spent 35960 | . 4470 4300 1100 2100 8865 2140 850 . . 2000 . 2595 . . . 1500 1400 300 2550 . 1790 Upgrades 65 | . 12 5 1 4 13 5 2 . . 1 . 4 . . . 1 2 1 5 . 9 Power Slot 1 | . . . . . . 1 . . . . . . . . . . . . . . . Propulsion Slot 4 | . . 3 . . 1 . . . . . . . . . . . . . . . . Utility Slot 7 | . 2 1 . 1 1 . . . . 1 . 1 . . . . . . . . . Weapon Slot 4 | . 1 1 1 . . . . . . . . . . . . . . . 1 . . Core Integrity 6 | . . . . . . . . . . . . . . . . . . . . . 6 Heat Dissipation 8 | . 2 . . . 1 3 . . . . . 1 . . . . . . . . 1 Matter Storage 2 | . . . . . 2 . . . . . . . . . . . . . . . . Mass Support 1 | . . . . . . . . . . . . . . . . . . . 1 . . Inventory Capacity 6 | . 2 . . . 2 1 . . . . . . . . . 1 . . . . . Sight Range 3 | . . . . 1 . . . . . . . . . . . . . 1 . . 1 Sensor Range 2 | . . . . . . . . . . . . 2 . . . . . . . . . Ranged Accuracy 5 | . 2 . . . 1 . 1 . . . . . . . . . . . . . 1 Hack Attack % 3 | . 1 . . 1 . . . . . . . . . . . . 1 . . . . Hack Defense % 3 | . 2 . . . . . . . . . . . . . . . 1 . . . . KI Resistance % 2 | . . . . . 2 . . . . . . . . . . . . . . . . TH Resistance % 2 | . . . . . . . 1 . . . . . . . . . . . 1 . . KI Damage % 4 | . . . . 1 3 . . . . . . . . . . . . . . . . TH Damage % 2 | . . . . . . . . . . . . . . . . . . . 2 . . Protomatter Created 7504 | . 275 . . 182 974 603 706 579 25 622 1029 263 74 85 . 327 142 566 294 70 688 Integrity Restored 5635 | . 522 135 . 258 468 182 331 179 58 234 140 300 157 210 . 225 300 483 349 328 776 Core 4010 | . 443 132 . 108 373 142 279 130 58 159 100 281 157 56 . 163 238 331 117 96 647 Parts 1625 | . 79 3 . 150 95 40 52 49 . 75 40 19 . 154 . 62 62 152 232 232 129 Protomatter Decayed 6211 | . 77 15 . 65 758 537 571 511 25 690 842 58 21 152 . 312 55 565 274 138 545 Game ------ Seed DataSkeletonField Manual? 0 Play Time 03:13:44 Cumulative 414.6 hours Start 2023.03.04 @ 22:02:07 End 2023.03.05 @ 16:05:00 Sessions 1 Manual Loads 0 Difficulty Rogue Special Mode Winter2019/RPGLIKE Game No. 472 Rogue 472 Adventurer 0 Explorer 0 Win Type - Total 0 Types 0/0/0/0/0/0/0/0/0 Lore% 54 Gallery% 76 Achievement% 62 Wizard Run 0 Options --------- ASCII 0 Keyboard 0 Movement Mouse Keybinds 0 Fullscreen 2 Font 24/Smallcaps Map View 76x50 Tactical HUD 1 Map Filters NONE Filters NONE Steam 1 RUN: 17b602f7-4dbb-4cf3-9e24-e27a636f09b0